[Event "Titled Tuesday Blitz May 9 Late 2023"]
[White "Arabidze, Meri"]
[Black "Zhigalko, Sergei"]
[WhiteFideId "13604040"]
[BlackFideId "13502956"]
[WhiteElo "2405"]
[BlackElo "2626"]
[Result "0-1"]
[Round "04"]
[TimeControl "180+2"]
[Date "2023.05.09"]
[WhiteClock "0:00:07"]
[BlackClock "0:00:05"]

1. Nf3 {[%clk 0:03:00]}  d5 {[%clk 0:02:55]} 2. d4 {[%clk 0:03:00]}  e6 {[%clk 0:02:54]} 3. c4 {[%clk 0:03:01]}  c6 {[%clk 0:02:54]} 4. e3 {[%clk 0:02:59]}  Bd6 {[%clk 0:02:53]} 5. Nbd2 {[%clk 0:02:58]}  Nd7 {[%clk 0:02:50]} 6. b3 {[%clk 0:02:59]}  f5 {[%clk 0:02:49]} 7. Bb2 {[%clk 0:02:59]}  Ngf6 {[%clk 0:02:50]} 8. Be2 {[%clk 0:02:56]}  O-O {[%clk 0:02:49]} 9. O-O {[%clk 0:02:56]}  b6 {[%clk 0:02:48]} 10. Ne5 {[%clk 0:02:55]}  Bb7 {[%clk 0:02:48]} 11. f4 {[%clk 0:02:55]}  Rc8 {[%clk 0:02:47]} 12. cxd5 {[%clk 0:02:48]}  Nxd5 {[%clk 0:02:38]} 13. Ndc4 {[%clk 0:02:37]}  Nxe5 {[%clk 0:02:27]} 14. dxe5 {[%clk 0:02:25]}  Bc5 {[%clk 0:02:19]} 15. Bd4 {[%clk 0:02:24]}  Be7 {[%clk 0:02:17]} 16. Qc1 {[%clk 0:02:10]}  c5 {[%clk 0:02:11]} 17. Bb2 {[%clk 0:02:09]}  b5 {[%clk 0:02:06]} 18. Nd6 {[%clk 0:02:09]}  Bxd6 {[%clk 0:02:06]} 19. exd6 {[%clk 0:02:10]}  c4 {[%clk 0:02:07]} 20. bxc4 {[%clk 0:02:08]}  Qxd6 {[%clk 0:01:59]} 21. Be5 {[%clk 0:01:58]}  Qe7 {[%clk 0:01:56]} 22. cxd5 {[%clk 0:01:48]}  Rxc1 {[%clk 0:01:48]} 23. Raxc1 {[%clk 0:01:49]}  Qa3 {[%clk 0:01:32]} 24. Bd4 {[%clk 0:01:35]}  Bxd5 {[%clk 0:01:03]} 25. Rc7 {[%clk 0:01:34]}  Rf7 {[%clk 0:00:47]} 26. Rc8+ {[%clk 0:01:34]}  Rf8 {[%clk 0:00:47]} 27. Rc7 {[%clk 0:01:34]}  e5 {[%clk 0:00:36]} 28. Bxe5 {[%clk 0:01:18]}  Qxe3+ {[%clk 0:00:31]} 29. Rf2 {[%clk 0:01:18]}  Rf7 {[%clk 0:00:26]} 30. Rc8+ {[%clk 0:01:16]}  Rf8 {[%clk 0:00:26]} 31. Rc7 {[%clk 0:01:17]}  Bf7 {[%clk 0:00:21]} 32. Bxb5 {[%clk 0:01:16]}  Rd8 {[%clk 0:00:15]} 33. Be2 {[%clk 0:00:43]}  h6 {[%clk 0:00:14]} 34. Rc3 {[%clk 0:00:40]}  Qb6 {[%clk 0:00:12]} 35. Bc7 {[%clk 0:00:32]}  Qb1+ {[%clk 0:00:07]} 36. Rf1 {[%clk 0:00:32]}  Qxa2 {[%clk 0:00:07]} 37. Bxd8 {[%clk 0:00:31]}  Qxe2 {[%clk 0:00:07]} 38. Bc7 {[%clk 0:00:25]}  Kh7 {[%clk 0:00:03]} 39. Be5 {[%clk 0:00:24]}  Bd5 {[%clk 0:00:02]} 40. Rg3 {[%clk 0:00:24]}  g5 {[%clk 0:00:03]} 41. h3 {[%clk 0:00:18]}  a5 {[%clk 0:00:02]} 42. Bd6 {[%clk 0:00:15]}  g4 {[%clk 0:00:02]} 43. hxg4 {[%clk 0:00:15]}  fxg4 {[%clk 0:00:02]} 44. f5 {[%clk 0:00:16]}  h5 {[%clk 0:00:03]} 45. Rf2 {[%clk 0:00:08]}  Qe1+ {[%clk 0:00:03]} 46. Rf1 {[%clk 0:00:08]}  Qe2 {[%clk 0:00:03]} 47. Rf2 {[%clk 0:00:09]}  Qd1+ {[%clk 0:00:03]} 48. Rf1 {[%clk 0:00:09]}  Qd4+ {[%clk 0:00:03]} 49. Rf2 {[%clk 0:00:09]}  h4 {[%clk 0:00:03]} 50. Ra3 {[%clk 0:00:06]}  g3 {[%clk 0:00:03]} 51. Bxg3 {[%clk 0:00:06]}  hxg3 {[%clk 0:00:03]} 52. Rxg3 {[%clk 0:00:07]}  a4 {[%clk 0:00:03]} 53. f6 {[%clk 0:00:07]}  Qe5 {[%clk 0:00:02]} 54. Rh3+ {[%clk 0:00:06]}  Kg6 {[%clk 0:00:02]} 55. Rg3+ {[%clk 0:00:06]}  Qxg3 {[%clk 0:00:02]} 56. f7 {[%clk 0:00:05]}  Bxf7 {[%clk 0:00:02]} 57. Rf3 {[%clk 0:00:06]}  Qe1+ {[%clk 0:00:03]} 58. Kh2 {[%clk 0:00:07]}  Qe5+ {[%clk 0:00:03]} 59. Rg3+ {[%clk 0:00:08]}  Kf5 {[%clk 0:00:04]} 60. Kh3 {[%clk 0:00:07]}  Be6 {[%clk 0:00:05]} 61. Rf3+ {[%clk 0:00:08]}  Kg5+ {[%clk 0:00:05]} 62. g4 {[%clk 0:00:07]}  Bxg4+ {[%clk 0:00:05]} 0-1


[Site "https://www.chess.com"]

[Event "Titled Tuesday Blitz May 9 Late 2023"]
[White "Bortnyk, Olexandr"]
[Black "Aydincelebi, Kagan"]
[WhiteFideId "14120828"]
[BlackFideId "6361102"]
[WhiteElo "2734"]
[BlackElo "2180"]
[Result "1-0"]
[Round "04"]
[TimeControl "180+2"]
[Date "2023.05.09"]
[WhiteClock "0:00:07"]
[BlackClock "0:00:53"]

1. d4 {[%clk 0:02:46]}  c5 {[%clk 0:02:58]} 2. d5 {[%clk 0:02:43]}  Nf6 {[%clk 0:02:58]} 3. Nc3 {[%clk 0:02:43]}  d6 {[%clk 0:02:59]} 4. e4 {[%clk 0:02:43]}  g6 {[%clk 0:02:59]} 5. f4 {[%clk 0:02:44]}  Bg7 {[%clk 0:02:59]} 6. Nf3 {[%clk 0:02:45]}  O-O {[%clk 0:03:00]} 7. e5 {[%clk 0:02:45]}  dxe5 {[%clk 0:02:52]} 8. fxe5 {[%clk 0:02:46]}  Ng4 {[%clk 0:02:50]} 9. Bf4 {[%clk 0:02:40]}  Qb6 {[%clk 0:02:37]} 10. h3 {[%clk 0:02:09]}  Nh6 {[%clk 0:02:16]} 11. Qd2 {[%clk 0:02:04]}  Nf5 {[%clk 0:02:16]} 12. O-O-O {[%clk 0:02:00]}  Nd7 {[%clk 0:02:06]} 13. Bc4 {[%clk 0:01:30]}  Nd4 {[%clk 0:02:03]} 14. Rhe1 {[%clk 0:01:18]}  Nxf3 {[%clk 0:02:02]} 15. gxf3 {[%clk 0:01:19]}  Qb4 {[%clk 0:02:01]} 16. Re4 {[%clk 0:00:20]}  Nxe5 {[%clk 0:01:46]} 17. Bxe5 {[%clk 0:00:19]}  Bxe5 {[%clk 0:01:46]} 18. d6 {[%clk 0:00:18]}  Bxc3 {[%clk 0:01:41]} 19. bxc3 {[%clk 0:00:15]}  Qa3+ {[%clk 0:01:40]} 20. Kb1 {[%clk 0:00:16]}  exd6 {[%clk 0:01:38]} 21. Qh6 {[%clk 0:00:08]}  Qxc3 {[%clk 0:01:29]} 22. Bxf7+ {[%clk 0:00:08]}  Kxf7 {[%clk 0:01:23]} 23. Qxh7+ {[%clk 0:00:09]}  Qg7 {[%clk 0:01:01]} 24. Re7+ {[%clk 0:00:08]}  Kxe7 {[%clk 0:01:02]} 25. Qxg7+ {[%clk 0:00:09]}  Rf7 {[%clk 0:01:02]} 26. Qxg6 {[%clk 0:00:08]}  Be6 {[%clk 0:01:03]} 27. Re1 {[%clk 0:00:07]}  Rf6 {[%clk 0:01:02]} 28. Qg7+ {[%clk 0:00:07]}  Rf7 {[%clk 0:01:03]} 29. Qg6 {[%clk 0:00:07]}  Rf6 {[%clk 0:01:03]} 30. Qh7+ {[%clk 0:00:07]}  Rf7 {[%clk 0:00:53]} 31. Qe4 {[%clk 0:00:07]} 1-0


[Site "https://www.chess.com"]

[Event "Titled Tuesday Blitz May 9 Late 2023"]
[White "Kollars, Dmitrij"]
[Black "Krzyzanowski, Marcin"]
[WhiteFideId "12909572"]
[BlackFideId "1132199"]
[WhiteElo "2584"]
[BlackElo "2471"]
[Result "0-1"]
[Round "04"]
[TimeControl "180+2"]
[Date "2023.05.09"]
[WhiteClock "0:00:07"]
[BlackClock "0:00:23"]

1. c4 {[%clk 0:03:00]}  e5 {[%clk 0:02:59]} 2. Nc3 {[%clk 0:02:58]}  Bb4 {[%clk 0:02:58]} 3. Nd5 {[%clk 0:02:52]}  a5 {[%clk 0:02:57]} 4. a3 {[%clk 0:02:52]}  Bc5 {[%clk 0:02:56]} 5. e3 {[%clk 0:02:52]}  d6 {[%clk 0:02:54]} 6. d4 {[%clk 0:02:51]}  Ba7 {[%clk 0:02:52]} 7. Nf3 {[%clk 0:02:51]}  c6 {[%clk 0:02:46]} 8. Nc3 {[%clk 0:02:51]}  Nd7 {[%clk 0:02:46]} 9. Qc2 {[%clk 0:02:45]}  Ngf6 {[%clk 0:02:46]} 10. Be2 {[%clk 0:02:45]}  O-O {[%clk 0:02:46]} 11. O-O {[%clk 0:02:44]}  Re8 {[%clk 0:02:46]} 12. b4 {[%clk 0:02:17]}  e4 {[%clk 0:02:41]} 13. Nd2 {[%clk 0:02:17]}  d5 {[%clk 0:02:42]} 14. Nb3 {[%clk 0:02:08]}  Bb8 {[%clk 0:02:35]} 15. Nxa5 {[%clk 0:02:06]}  h5 {[%clk 0:02:23]} 16. Bd2 {[%clk 0:01:56]}  Nf8 {[%clk 0:02:21]} 17. f4 {[%clk 0:01:36]}  exf3 {[%clk 0:02:18]} 18. Bxf3 {[%clk 0:01:34]}  Ng6 {[%clk 0:02:14]} 19. cxd5 {[%clk 0:01:22]}  cxd5 {[%clk 0:02:13]} 20. Rac1 {[%clk 0:00:59]}  Qd6 {[%clk 0:01:35]} 21. g3 {[%clk 0:00:58]}  Qe6 {[%clk 0:01:21]} 22. Nb5 {[%clk 0:00:50]}  h4 {[%clk 0:01:16]} 23. Nc7 {[%clk 0:00:50]}  Bxc7 {[%clk 0:01:17]} 24. Qxc7 {[%clk 0:00:51]}  hxg3 {[%clk 0:01:17]} 25. hxg3 {[%clk 0:00:52]}  b6 {[%clk 0:01:08]} 26. Rc6 {[%clk 0:00:44]}  Qh3 {[%clk 0:01:08]} 27. Bg2 {[%clk 0:00:44]}  Qh5 {[%clk 0:01:06]} 28. Rxb6 {[%clk 0:00:41]}  Ng4 {[%clk 0:01:06]} 29. Rf3 {[%clk 0:00:33]}  Be6 {[%clk 0:01:00]} 30. Qc1 {[%clk 0:00:25]}  Rac8 {[%clk 0:00:52]} 31. Rc6 {[%clk 0:00:25]}  Kh7 {[%clk 0:00:51]} 32. b5 {[%clk 0:00:24]}  Nh2 {[%clk 0:00:45]} 33. Rf2 {[%clk 0:00:20]}  Ng4 {[%clk 0:00:45]} 34. Rf3 {[%clk 0:00:18]}  Bf5 {[%clk 0:00:36]} 35. Rxf5 {[%clk 0:00:12]}  Qxf5 {[%clk 0:00:34]} 36. Qf1 {[%clk 0:00:08]}  Qh5 {[%clk 0:00:32]} 37. Qf3 {[%clk 0:00:08]}  Rcd8 {[%clk 0:00:25]} 38. Kf1 {[%clk 0:00:08]}  Nh2+ {[%clk 0:00:22]} 39. Ke2 {[%clk 0:00:09]}  Nxf3 {[%clk 0:00:23]} 40. Bxf3 {[%clk 0:00:10]}  Qh2+ {[%clk 0:00:22]} 41. Kd3 {[%clk 0:00:09]}  Qxg3 {[%clk 0:00:23]} 42. Be2 {[%clk 0:00:07]}  Nf4+ {[%clk 0:00:23]} 0-1


[Site "https://www.chess.com"]

[Event "Titled Tuesday Blitz May 9 Late 2023"]
[White "Gritsenko, Nikolai"]
[Black "Rasulov, Vugar"]
[WhiteFideId "14112493"]
[BlackFideId "13402390"]
[WhiteElo "2389"]
[BlackElo "2509"]
[Result "0-1"]
[Round "04"]
[TimeControl "180+2"]
[Date "2023.05.09"]
[WhiteClock "0:01:00"]
[BlackClock "0:01:56"]

1. d4 {[%clk 0:03:00]}  Nf6 {[%clk 0:03:00]} 2. Bg5 {[%clk 0:03:00]}  d5 {[%clk 0:02:59]} 3. Nd2 {[%clk 0:02:58]}  g6 {[%clk 0:02:57]} 4. Bxf6 {[%clk 0:02:57]}  exf6 {[%clk 0:02:57]} 5. e3 {[%clk 0:02:57]}  f5 {[%clk 0:02:57]} 6. g3 {[%clk 0:02:53]}  Nd7 {[%clk 0:02:58]} 7. c4 {[%clk 0:02:52]}  Nf6 {[%clk 0:02:57]} 8. cxd5 {[%clk 0:02:50]}  h5 {[%clk 0:02:53]} 9. Ngf3 {[%clk 0:02:41]}  Bd6 {[%clk 0:02:52]} 10. Qb3 {[%clk 0:02:31]}  Kf8 {[%clk 0:02:49]} 11. Bg2 {[%clk 0:02:23]}  Kg7 {[%clk 0:02:48]} 12. Ne5 {[%clk 0:02:20]}  h4 {[%clk 0:02:46]} 13. O-O-O {[%clk 0:02:19]}  h3 {[%clk 0:02:43]} 14. Bf3 {[%clk 0:02:13]}  a5 {[%clk 0:02:44]} 15. Kb1 {[%clk 0:01:53]}  a4 {[%clk 0:02:42]} 16. Qd3 {[%clk 0:01:54]}  b5 {[%clk 0:02:38]} 17. Nc6 {[%clk 0:01:49]}  Qe8 {[%clk 0:02:38]} 18. e4 {[%clk 0:01:40]}  fxe4 {[%clk 0:02:36]} 19. Bxe4 {[%clk 0:01:37]}  Ng4 {[%clk 0:02:22]} 20. Qf3 {[%clk 0:01:23]}  Nf6 {[%clk 0:02:05]} 21. Rde1 {[%clk 0:01:23]}  Qf8 {[%clk 0:01:58]} 22. Re3 {[%clk 0:01:00]}  Bg4 {[%clk 0:01:56]} 0-1


[Site "https://www.chess.com"]

[Event "Titled Tuesday Blitz May 9 Late 2023"]
[White "Koziorowicz, Michal"]
[Black "Yoo, Christopher Woojin"]
[WhiteFideId "21809194"]
[BlackFideId "30909694"]
[WhiteElo "2255"]
[BlackElo "2519"]
[Result "0-1"]
[Round "04"]
[TimeControl "180+2"]
[Date "2023.05.09"]
[WhiteClock "0:01:21"]
[BlackClock "0:00:20"]

1. e4 {[%clk 0:03:00]}  c5 {[%clk 0:02:59]} 2. Nf3 {[%clk 0:02:57]}  d6 {[%clk 0:02:59]} 3. Bb5+ {[%clk 0:02:57]}  Nd7 {[%clk 0:02:58]} 4. d4 {[%clk 0:02:56]}  cxd4 {[%clk 0:02:58]} 5. Qxd4 {[%clk 0:02:57]}  a6 {[%clk 0:02:58]} 6. Bxd7+ {[%clk 0:02:57]}  Bxd7 {[%clk 0:02:58]} 7. Nc3 {[%clk 0:02:57]}  Nf6 {[%clk 0:02:55]} 8. Bg5 {[%clk 0:02:57]}  e6 {[%clk 0:02:55]} 9. O-O {[%clk 0:02:56]}  Be7 {[%clk 0:02:56]} 10. Nd2 {[%clk 0:02:53]}  b5 {[%clk 0:02:28]} 11. Rfd1 {[%clk 0:02:53]}  Qc7 {[%clk 0:02:19]} 12. Nf1 {[%clk 0:02:51]}  h6 {[%clk 0:02:10]} 13. Bh4 {[%clk 0:02:49]}  a5 {[%clk 0:01:28]} 14. a3 {[%clk 0:02:41]}  Rb8 {[%clk 0:01:27]} 15. Bg3 {[%clk 0:02:31]}  e5 {[%clk 0:01:20]} 16. Qd3 {[%clk 0:02:26]}  b4 {[%clk 0:01:20]} 17. axb4 {[%clk 0:02:26]}  axb4 {[%clk 0:01:21]} 18. Nd5 {[%clk 0:02:23]}  Nxd5 {[%clk 0:01:19]} 19. Qxd5 {[%clk 0:02:24]}  Qxc2 {[%clk 0:01:03]} 20. Ne3 {[%clk 0:02:18]}  Qc6 {[%clk 0:00:57]} 21. Qd3 {[%clk 0:02:18]}  Be6 {[%clk 0:00:55]} 22. Ra7 {[%clk 0:02:15]}  Ra8 {[%clk 0:00:48]} 23. Rxa8+ {[%clk 0:02:09]}  Qxa8 {[%clk 0:00:49]} 24. Qb5+ {[%clk 0:02:10]}  Kf8 {[%clk 0:00:47]} 25. Qxb4 {[%clk 0:01:56]}  d5 {[%clk 0:00:48]} 26. Qb5 {[%clk 0:01:56]}  d4 {[%clk 0:00:48]} 27. Nd5 {[%clk 0:01:53]}  Bxd5 {[%clk 0:00:35]} 28. exd5 {[%clk 0:01:54]}  f6 {[%clk 0:00:33]} 29. h4 {[%clk 0:01:42]}  Kf7 {[%clk 0:00:29]} 30. Qd7 {[%clk 0:01:41]}  Rd8 {[%clk 0:00:27]} 31. Qe6+ {[%clk 0:01:40]}  Kf8 {[%clk 0:00:27]} 32. Rc1 {[%clk 0:01:35]}  Qxd5 {[%clk 0:00:26]} 33. Qf5 {[%clk 0:01:34]}  d3 {[%clk 0:00:25]} 34. Rd1 {[%clk 0:01:31]}  Qb3 {[%clk 0:00:24]} 35. Rd2 {[%clk 0:01:27]}  Bb4 {[%clk 0:00:22]} 36. Bxe5 {[%clk 0:01:22]}  Bxd2 {[%clk 0:00:21]} 37. Bxf6 {[%clk 0:01:23]}  gxf6 {[%clk 0:00:21]} 38. Qxf6+ {[%clk 0:01:24]}  Ke8 {[%clk 0:00:21]} 39. Qg6+ {[%clk 0:01:24]}  Qf7 {[%clk 0:00:20]} 40. Qc6+ {[%clk 0:01:24]}  Kf8 {[%clk 0:00:20]} 41. Qe8+ {[%clk 0:01:21]}  Qxe8 {[%clk 0:00:20]} 0-1


[Site "https://www.chess.com"]

[Event "Titled Tuesday Blitz May 9 Late 2023"]
[White "Ozdemir, Serhan Berat"]
[Black "Pakleza, Zbigniew"]
[WhiteFideId "6374611"]
[BlackFideId "1119290"]
[WhiteElo "2015"]
[BlackElo "2410"]
[Result "1-0"]
[Round "04"]
[TimeControl "180+2"]
[Date "2023.05.09"]
[WhiteClock "0:00:06"]
[BlackClock "0:00:00"]

1. e4 {[%clk 0:02:48]}  d6 {[%clk 0:02:59]} 2. d4 {[%clk 0:02:48]}  Nf6 {[%clk 0:03:00]} 3. Nc3 {[%clk 0:02:48]}  c6 {[%clk 0:03:00]} 4. Nf3 {[%clk 0:02:48]}  Bg4 {[%clk 0:03:00]} 5. Be3 {[%clk 0:02:48]}  e6 {[%clk 0:03:00]} 6. Be2 {[%clk 0:02:43]}  d5 {[%clk 0:03:00]} 7. e5 {[%clk 0:02:38]}  Nfd7 {[%clk 0:03:00]} 8. Ng5 {[%clk 0:02:20]}  Bxe2 {[%clk 0:02:49]} 9. Qxe2 {[%clk 0:02:21]}  Be7 {[%clk 0:02:34]} 10. h4 {[%clk 0:02:16]}  h6 {[%clk 0:02:22]} 11. Nf3 {[%clk 0:02:11]}  c5 {[%clk 0:02:19]} 12. dxc5 {[%clk 0:02:07]}  Nc6 {[%clk 0:02:19]} 13. O-O-O {[%clk 0:01:58]}  Nxc5 {[%clk 0:02:15]} 14. Kb1 {[%clk 0:01:37]}  Qa5 {[%clk 0:02:02]} 15. Nb5 {[%clk 0:01:14]}  O-O-O {[%clk 0:01:53]} 16. a3 {[%clk 0:01:04]}  Ne4 {[%clk 0:01:45]} 17. Nfd4 {[%clk 0:00:53]}  a6 {[%clk 0:01:13]} 18. Nxc6 {[%clk 0:00:46]}  bxc6 {[%clk 0:01:14]} 19. Nd4 {[%clk 0:00:41]}  c5 {[%clk 0:01:01]} 20. Nb3 {[%clk 0:00:41]}  Qb6 {[%clk 0:00:49]} 21. Rh3 {[%clk 0:00:37]}  d4 {[%clk 0:00:22]} 22. Bc1 {[%clk 0:00:36]}  c4 {[%clk 0:00:02]} 23. Qxe4 {[%clk 0:00:28]}  cxb3 {[%clk 0:00:01]} 24. Rxb3 {[%clk 0:00:29]}  Qc7 {[%clk 0:00:01]} 25. Qa8+ {[%clk 0:00:19]}  Kd7 {[%clk 0:00:01]} 26. Rxd4+ {[%clk 0:00:20]}  Ke8 {[%clk 0:00:01]} 27. Rxd8+ {[%clk 0:00:20]}  Bxd8 {[%clk 0:00:02]} 28. Qxa6 {[%clk 0:00:20]}  Qxe5 {[%clk 0:00:02]} 29. g3 {[%clk 0:00:13]}  Qd5 {[%clk 0:00:02]} 30. Qb5+ {[%clk 0:00:12]}  Qxb5 {[%clk 0:00:02]} 31. Rxb5 {[%clk 0:00:13]}  Kd7 {[%clk 0:00:03]} 32. Be3 {[%clk 0:00:13]}  Kc6 {[%clk 0:00:03]} 33. a4 {[%clk 0:00:13]}  Bc7 {[%clk 0:00:03]} 34. Rc5+ {[%clk 0:00:13]}  Kd7 {[%clk 0:00:04]} 35. b4 {[%clk 0:00:13]}  Ra8 {[%clk 0:00:04]} 36. a5 {[%clk 0:00:13]}  Bd6 {[%clk 0:00:05]} 37. Rb5 {[%clk 0:00:13]}  Kc6 {[%clk 0:00:04]} 38. Rb6+ {[%clk 0:00:13]}  Kc7 {[%clk 0:00:05]} 39. c4 {[%clk 0:00:13]}  g5 {[%clk 0:00:04]} 40. hxg5 {[%clk 0:00:12]}  hxg5 {[%clk 0:00:04]} 41. Bxg5 {[%clk 0:00:13]}  Rh8 {[%clk 0:00:04]} 42. Be3 {[%clk 0:00:12]}  Rh1+ {[%clk 0:00:05]} 43. Kc2 {[%clk 0:00:12]}  Ra1 {[%clk 0:00:05]} 44. c5 {[%clk 0:00:12]}  Be5 {[%clk 0:00:05]} 45. a6 {[%clk 0:00:09]}  Ra3 {[%clk 0:00:03]} 46. Rb7+ {[%clk 0:00:08]}  Kc6 {[%clk 0:00:03]} 47. b5+ {[%clk 0:00:08]}  Kd5 {[%clk 0:00:04]} 48. c6 {[%clk 0:00:05]}  Rc3+ {[%clk 0:00:01]} 49. Kd2 {[%clk 0:00:04]}  Ke4 {[%clk 0:00:01]} 50. a7 {[%clk 0:00:04]}  Rd3+ {[%clk 0:00:02]} 51. Ke2 {[%clk 0:00:04]}  Ra3 {[%clk 0:00:03]} 52. f3+ {[%clk 0:00:03]}  Kd5 {[%clk 0:00:03]} 53. Rb8 {[%clk 0:00:03]}  Ra2+ {[%clk 0:00:04]} 54. Kd3 {[%clk 0:00:03]}  Ra3+ {[%clk 0:00:03]} 55. Ke2 {[%clk 0:00:04]}  Ra2+ {[%clk 0:00:04]} 56. Bd2 {[%clk 0:00:04]}  Bc3 {[%clk 0:00:02]} 57. a8=Q {[%clk 0:00:04]}  Rxd2+ {[%clk 0:00:03]} 58. Ke3 {[%clk 0:00:04]}  Rd1 {[%clk 0:00:01]} 59. Rd8+ {[%clk 0:00:05]}  Kc4 {[%clk 0:00:00]} 60. Rxd1 {[%clk 0:00:06]} 1-0


[Site "https://www.chess.com"]

[Event "Titled Tuesday Blitz May 9 Late 2023"]
[White "Kim, Sergey"]
[Black "Naroditsky, Daniel"]
[WhiteFideId "13700570"]
[BlackFideId "2026961"]
[WhiteElo "2606"]
[BlackElo "2633"]
[Result "1/2-1/2"]
[Round "04"]
[TimeControl "180+2"]
[Date "2023.05.09"]
[WhiteClock "0:00:09"]
[BlackClock "0:00:04"]

1. d4 {[%clk 0:03:00]}  Nf6 {[%clk 0:03:00]} 2. c4 {[%clk 0:03:00]}  g6 {[%clk 0:03:00]} 3. Nc3 {[%clk 0:03:01]}  Bg7 {[%clk 0:03:01]} 4. e4 {[%clk 0:03:00]}  d6 {[%clk 0:03:02]} 5. Nge2 {[%clk 0:03:00]}  O-O {[%clk 0:03:02]} 6. Ng3 {[%clk 0:03:00]}  c6 {[%clk 0:03:02]} 7. Be2 {[%clk 0:03:00]}  a6 {[%clk 0:03:02]} 8. a4 {[%clk 0:02:59]}  a5 {[%clk 0:03:02]} 9. O-O {[%clk 0:02:59]}  Nbd7 {[%clk 0:03:01]} 10. Be3 {[%clk 0:02:58]}  e5 {[%clk 0:03:02]} 11. d5 {[%clk 0:02:58]}  Nc5 {[%clk 0:03:02]} 12. Ra3 {[%clk 0:02:57]}  h5 {[%clk 0:03:01]} 13. Bg5 {[%clk 0:02:54]}  Qb6 {[%clk 0:03:00]} 14. Qc2 {[%clk 0:02:48]}  Re8 {[%clk 0:02:46]} 15. h3 {[%clk 0:02:03]}  Nh7 {[%clk 0:02:22]} 16. Be3 {[%clk 0:02:02]}  h4 {[%clk 0:02:22]} 17. Nh1 {[%clk 0:02:01]}  f5 {[%clk 0:02:17]} 18. f3 {[%clk 0:01:58]}  Nf6 {[%clk 0:02:05]} 19. Nf2 {[%clk 0:01:54]}  Nh5 {[%clk 0:02:03]} 20. Bg5 {[%clk 0:01:42]}  Ng3 {[%clk 0:01:41]} 21. Rb1 {[%clk 0:01:39]}  fxe4 {[%clk 0:01:39]} 22. fxe4 {[%clk 0:01:33]}  Rf8 {[%clk 0:01:16]} 23. Bf3 {[%clk 0:01:25]}  Bf6 {[%clk 0:00:48]} 24. Be3 {[%clk 0:01:20]}  Qd8 {[%clk 0:00:45]} 25. Qd2 {[%clk 0:01:12]}  Qe7 {[%clk 0:00:42]} 26. Rd1 {[%clk 0:01:09]}  Rd8 {[%clk 0:00:40]} 27. Nd3 {[%clk 0:01:03]}  Nxd3 {[%clk 0:00:36]} 28. Qxd3 {[%clk 0:01:03]}  c5 {[%clk 0:00:35]} 29. Qd2 {[%clk 0:01:00]}  Bd7 {[%clk 0:00:35]} 30. Ne2 {[%clk 0:00:59]}  Rf8 {[%clk 0:00:28]} 31. Nxg3 {[%clk 0:00:56]}  hxg3 {[%clk 0:00:29]} 32. Rf1 {[%clk 0:00:55]}  Bh4 {[%clk 0:00:27]} 33. Bh6 {[%clk 0:00:45]}  Rf7 {[%clk 0:00:27]} 34. Be3 {[%clk 0:00:39]}  b6 {[%clk 0:00:23]} 35. Rb3 {[%clk 0:00:35]}  Rb8 {[%clk 0:00:23]} 36. Ra3 {[%clk 0:00:35]}  g5 {[%clk 0:00:19]} 37. Raa1 {[%clk 0:00:30]}  Rbf8 {[%clk 0:00:18]} 38. Qe2 {[%clk 0:00:28]}  Rf6 {[%clk 0:00:15]} 39. b3 {[%clk 0:00:25]}  Qf7 {[%clk 0:00:15]} 40. Bh5 {[%clk 0:00:22]}  Qg7 {[%clk 0:00:12]} 41. Rxf6 {[%clk 0:00:20]}  Rxf6 {[%clk 0:00:12]} 42. Rf1 {[%clk 0:00:20]}  Kh7 {[%clk 0:00:05]} 43. Rxf6 {[%clk 0:00:17]}  Qxf6 {[%clk 0:00:06]} 44. Bg4 {[%clk 0:00:17]}  Be8 {[%clk 0:00:04]} 45. Bf5+ {[%clk 0:00:17]}  Kg7 {[%clk 0:00:05]} 46. Qg4 {[%clk 0:00:16]}  Qh6 {[%clk 0:00:04]} 47. Qe2 {[%clk 0:00:14]}  Bh5 {[%clk 0:00:04]} 48. Bg4 {[%clk 0:00:14]}  Bg6 {[%clk 0:00:04]} 49. Qf3 {[%clk 0:00:14]}  Bh7 {[%clk 0:00:04]} 50. Bf5 {[%clk 0:00:14]}  Bg8 {[%clk 0:00:04]} 51. Qg4 {[%clk 0:00:13]}  Qf6 {[%clk 0:00:04]} 52. Qf3 {[%clk 0:00:10]}  Bf7 {[%clk 0:00:04]} 53. Bg4 {[%clk 0:00:10]}  Qh6 {[%clk 0:00:03]} 54. Qf5 {[%clk 0:00:09]}  Qg6 {[%clk 0:00:02]} 55. Qd7 {[%clk 0:00:09]}  Qf6 {[%clk 0:00:02]} 56. Bf5 {[%clk 0:00:08]}  Kg8 {[%clk 0:00:02]} 57. Qc8+ {[%clk 0:00:07]}  Kg7 {[%clk 0:00:03]} 58. Qd7 {[%clk 0:00:08]}  Kg8 {[%clk 0:00:04]} 59. Qc8+ {[%clk 0:00:08]}  Kg7 {[%clk 0:00:04]} 60. Qd7 {[%clk 0:00:09]} 1/2-1/2


[Site "https://www.chess.com"]

[Event "Titled Tuesday Blitz May 9 Late 2023"]
[White "Tari, Aryan"]
[Black "cryptoguru02"]
[WhiteFideId "1510045"]
[WhiteElo "2571"]
[BlackElo "2584"]
[Result "1-0"]
[Round "04"]
[TimeControl "180+2"]
[Date "2023.05.09"]
[WhiteClock "0:00:27"]
[BlackClock "0:00:00"]

1. d4 {[%clk 0:02:58]}  d5 {[%clk 0:02:58]} 2. Nf3 {[%clk 0:02:58]}  Nf6 {[%clk 0:02:58]} 3. Bf4 {[%clk 0:02:58]}  c5 {[%clk 0:02:54]} 4. e3 {[%clk 0:02:59]}  Nc6 {[%clk 0:02:49]} 5. Nbd2 {[%clk 0:02:59]}  cxd4 {[%clk 0:02:47]} 6. exd4 {[%clk 0:02:59]}  Bg4 {[%clk 0:02:47]} 7. c3 {[%clk 0:02:58]}  e6 {[%clk 0:02:47]} 8. Qb3 {[%clk 0:02:51]}  Qb6 {[%clk 0:02:33]} 9. Qxb6 {[%clk 0:02:34]}  axb6 {[%clk 0:02:34]} 10. Bb5 {[%clk 0:02:34]}  Nd7 {[%clk 0:02:25]} 11. h3 {[%clk 0:02:27]}  Bxf3 {[%clk 0:02:25]} 12. Nxf3 {[%clk 0:02:27]}  Be7 {[%clk 0:02:25]} 13. h4 {[%clk 0:02:16]}  h6 {[%clk 0:02:23]} 14. h5 {[%clk 0:02:16]}  O-O {[%clk 0:02:10]} 15. Ke2 {[%clk 0:02:07]}  Rfc8 {[%clk 0:02:00]} 16. Ne1 {[%clk 0:02:06]}  Bd8 {[%clk 0:01:56]} 17. Nd3 {[%clk 0:02:02]}  Bc7 {[%clk 0:01:46]} 18. Be3 {[%clk 0:02:02]}  Bd6 {[%clk 0:01:40]} 19. g4 {[%clk 0:02:00]}  Rc7 {[%clk 0:01:29]} 20. g5 {[%clk 0:01:56]}  hxg5 {[%clk 0:01:26]} 21. Bxg5 {[%clk 0:01:57]}  f6 {[%clk 0:01:21]} 22. Be3 {[%clk 0:01:54]}  Kf7 {[%clk 0:01:20]} 23. Rag1 {[%clk 0:01:48]}  Rh8 {[%clk 0:01:12]} 24. Nf4 {[%clk 0:01:25]}  Ne7 {[%clk 0:01:02]} 25. Ng6 {[%clk 0:01:22]}  Rh7 {[%clk 0:00:57]} 26. Bd3 {[%clk 0:01:23]}  f5 {[%clk 0:00:40]} 27. Bf4 {[%clk 0:01:11]}  Bxf4 {[%clk 0:00:34]} 28. Nxf4 {[%clk 0:01:12]}  Nf6 {[%clk 0:00:34]} 29. f3 {[%clk 0:01:12]}  Nc6 {[%clk 0:00:28]} 30. Kf2 {[%clk 0:01:08]}  Rc8 {[%clk 0:00:28]} 31. Re1 {[%clk 0:01:03]}  Re8 {[%clk 0:00:20]} 32. Re2 {[%clk 0:00:52]}  Nd8 {[%clk 0:00:19]} 33. Ng6 {[%clk 0:00:52]}  Rxh5 {[%clk 0:00:15]} 34. Ne5+ {[%clk 0:00:50]}  Ke7 {[%clk 0:00:14]} 35. Rg1 {[%clk 0:00:47]}  g5 {[%clk 0:00:13]} 36. Kg2 {[%clk 0:00:31]}  Rg8 {[%clk 0:00:13]} 37. Rge1 {[%clk 0:00:30]}  Kd6 {[%clk 0:00:12]} 38. Nf7+ {[%clk 0:00:29]}  Nxf7 {[%clk 0:00:09]} 39. Rxe6+ {[%clk 0:00:29]}  Kd7 {[%clk 0:00:08]} 40. Rxf6 {[%clk 0:00:28]}  Nd6 {[%clk 0:00:09]} 41. Bxf5+ {[%clk 0:00:28]}  Kc7 {[%clk 0:00:06]} 42. Re7+ {[%clk 0:00:28]}  Kd8 {[%clk 0:00:04]} 43. Rd7+ {[%clk 0:00:27]}  Ke8 {[%clk 0:00:00]} 44. Rfxd6 {[%clk 0:00:27]} 1-0


[Site "https://www.chess.com"]